bitfinex-derivatives/quotes_ETHF0:USTF0_20250205
["timestamp","ask_amount","ask_price","bid_price","bid_amount"]
[1738771997065,3.2078,2757.2,2757.0,0.00544336]
[1738771998477,0.72514,2757.1,2757.0,0.00544336]
[1738771998678,0.72524,2756.8,2755.6,3.2078]
[1738771998973,3.2078,2756.7,2755.6,3.2078]
[1738771999176,1.722,2756.8,2755.9,3.2078]
[1738771999777,3.2078,2757.0,2756.0,3.2078]
[1738772000081,3.2078,2757.0,2756.1,0.00544336]
[1738772000881,3.2078,2757.0,2756.2,3.2078]
[1738772001973,1.723,2757.2,2756.5,3.2078]
[1738772002172,3.2078,2757.4,2756.8,3.2078]
[1738772002375,3.2078,2757.4,2756.5,3.2078]
[1738772002575,3.2078,2757.4,2756.8,3.2078]
[1738772003576,3.2078,2757.4,2756.4,3.2078]
[1738772003978,0.7251,2757.3,2756.4,3.2078]
[1738772004175,3.2078,2757.4,2756.4,3.2078]
[1738772004375,3.93296,2757.1,2756.1,3.21324336]
[1738772004579,3.2078,2757.1,2756.1,3.21324336]
[1738772004781,3.2078,2757.1,2756.4,3.2078]
[1738772005380,3.2078,2757.1,2756.5,1.7972]
[1738772005883,0.00544336,2757.5,2756.5,1.7972]
[1738772006081,3.2078,2757.4,2756.5,1.7972]
[1738772006680,3.2078,2757.1,2756.3,3.2078]
[1738772007076,6.5857034,2757.2,2756.3,3.2078]
[1738772007379,3.2078,2757.2,2756.3,3.2078]
[1738772007782,3.2078,2756.7,2756.1,0.00544336]
[1738772007984,3.2078,2756.2,2755.4,0.8601]
[1738772008182,3.2078,2755.8,2755.4,0.8601]
[1738772008389,0.72552,2755.7,2755.1,3.2078]
[1738772008585,3.2078,2755.5,2755.1,3.2078]
[1738772009282,3.2078,2755.5,2755.0,0.00544336]
[1738772009488,3.2078,2755.5,2753.9,0.3632]
[1738772009489,3.2078,2755.2,2754.5,3.2078]
[1738772009691,3.2078,2754.6,2753.8,3.2078]
[1738772009883,3.2078,2754.3,2753.8,3.2078]
[1738772010382,3.3779034,2754.9,2753.8,3.2078]
[1738772010383,3.2078,2754.8,2753.8,3.2078]
[1738772010687,3.2078,2754.8,2754.1,3.2078]
[1738772011887,3.2078,2754.8,2753.6,3.2078]
[1738772012089,3.2078,2754.8,2754.2,3.2078]
[1738772013383,0.00544336,2755.6,2754.5,3.2078]
[1738772013593,0.00544336,2755.6,2754.9,3.2078]
[1738772013980,0.00544336,2755.6,2755.2,3.2078]
[1738772014188,0.00544336,2755.6,2755.5,3.2078]
[1738772014381,4.9398,2756.8,2755.5,3.2078]
[1738772014581,4.9398,2756.8,2756.1,3.2078]
[1738772014582,3.49412569,2756.8,2756.1,3.2078]
[1738772014794,1.73,2757.2,2756.1,3.2078]
[1738772014989,3.2078,2757.4,2756.4,3.2078]
[1738772015685,3.2078,2757.0,2756.6,0.00544336]
[1738772015892,3.2078,2756.8,2756.0,3.2078]
[1738772016085,3.2078,2756.5,2755.7,3.2078]
[1738772016286,4.9368,2756.5,2755.7,3.2078]
[1738772016482,1.729,2756.5,2755.7,3.2078]
[1738772016689,3.2078,2756.4,2755.7,3.2078]
[1738772016891,3.2078,2755.8,2755.2,3.2078]
[1738772017093,3.2078,2756.3,2755.2,3.2078]
[1738772017286,3.93317,2756.3,2755.2,3.2078]
[1738772017590,0.00544336,2756.0,2755.2,3.2078]
[1738772017793,3.2078,2755.9,2755.2,3.2078]
[1738772017985,0.00544336,2756.0,2755.2,3.2078]
[1738772018192,3.93326,2755.9,2755.2,3.2078]
[1738772018394,3.2078,2755.9,2755.2,3.2078]
[1738772019192,3.2078,2755.5,2754.7,0.866]
[1738772019587,3.2078,2755.9,2754.9,3.2078]
[1738772019887,3.2078,2755.3,2754.2,3.2078]
[1738772020090,5.66443,2755.3,2754.2,3.2078]
[1738772020294,3.93351,2755.0,2754.1,0.8868]
[1738772020492,8.3167034,2755.3,2754.1,0.8868]
[1738772020692,8.3167034,2755.3,2754.2,3.2078]
[1738772020998,0.72565,2755.2,2754.2,3.2078]
[1738772021198,8.3167034,2755.3,2754.2,3.2078]
[1738772021394,1.728,2755.5,2754.2,3.2078]
[1738772021603,1.728,2755.5,2754.5,3.2078]
[1738772021991,3.2078,2755.9,2754.3,45.46655426]
[1738772021992,3.2078,2755.9,2754.6,3.2078]
[1738772022394,0.72553,2755.7,2754.6,3.2078]
[1738772022697,0.72554,2755.6,2754.6,3.2078]
[1738772022898,3.2078,2755.6,2754.6,3.2078]
[1738772023895,3.2078,2755.6,2754.9,3.2078]
[1738772024798,1.725,2755.7,2754.9,3.2078]
[1738772025398,1.725,2755.7,2755.2,3.2078]
[1738772025698,3.3779034,2755.3,2754.2,3.2078]
[1738772025895,0.72569,2755.0,2754.2,3.2078]
[1738772026200,0.72574,2754.9,2754.2,3.2078]
[1738772026697,3.3779034,2755.3,2754.2,3.2078]
[1738772026900,0.72563,2755.3,2754.2,3.2078]
[1738772027105,3.2078,2755.1,2754.2,3.2078]
[1738772027396,3.2078,2754.6,2754.1,0.8868]
[1738772027698,3.2078,2755.0,2754.2,3.2078]
[1738772027893,3.9335,2755.0,2754.5,3.2078]
[1738772028098,3.2078,2755.0,2754.4,3.2078]
[1738772028497,0.72574,2754.9,2754.4,3.2078]
[1738772028704,0.72573,2754.9,2754.4,3.2078]
[1738772029404,3.2078,2754.6,2753.9,4.0911]
[1738772029897,0.72573,2754.9,2754.2,3.2078]
[1738772030097,3.2078,2754.3,2753.6,3.2078]
[1738772030300,3.2078,2754.0,2753.3,4.1123]
[1738772030898,3.2078,2754.0,2753.3,3.2078]
[1738772031095,3.2078,2753.5,2752.9,3.2078]
[1738772031393,1.72,2753.4,2752.3,3.21594064]
[1738772031598,1.72,2753.4,2752.3,0.00814064]
[1738772031599,3.2078,2753.2,2752.3,0.00814064]
[1738772032205,0.00544336,2753.0,2752.7,0.04964375]
[1738772032395,3.21324336,2753.0,2752.7,0.04964375]
[1738772033399,0.72635,2752.6,2752.3,1e-08]
[1738772033592,3.2078,2752.4,2751.4,3.2078]
[1738772033803,4.9258,2752.4,2751.4,3.2078]
[1738772034000,4.9258,2752.4,2750.7,0.8999]
[1738772034001,7.3121634,2752.1,2751.0,3.2078]
[1738772034302,6.5857034,2751.7,2751.0,3.2078]
[1738772034699,3.2078,2751.9,2751.0,3.2078]
[1738772034903,3.2078,2752.0,2751.4,3.2078]
[1738772035300,0.9096,2752.7,2751.4,3.2078]
[1738772035301,3.3779034,2753.6,2751.9,3.2078]
[1738772035603,0.00544336,2752.0,2751.8,3.3779034]
[1738772035805,3.2078,2753.2,2751.9,4.0777]
[1738772036005,3.2078,2753.2,2752.5,3.2078]
[1738772036194,3.2078,2752.8,2752.1,3.2078]
[1738772036505,3.3779034,2753.0,2752.1,3.2078]
[1738772036804,3.2078,2752.8,2752.1,3.2078]
[1738772037004,3.21324336,2752.8,2752.3,0.00544336]
[1738772037409,1.792,2752.7,2752.3,0.00544336]
[1738772037699,6.5857034,2752.5,2751.3,3.2078]
[1738772038002,3.2078,2751.7,2751.0,3.2078]
[1738772038197,3.2078,2751.7,2751.3,0.04964375]
[1738772039004,3.2078,2752.2,2751.3,3.25744375]
[1738772039194,3.2078,2752.2,2751.3,3.2078]
[1738772039398,0.883,2752.4,2751.7,0.04964375]
[1738772039794,0.28663783,2752.6,2751.7,0.04964375]
[1738772040006,3.2078,2752.7,2751.7,0.04964375]
[1738772040205,0.00544336,2752.8,2751.7,0.04964375]
[1738772040396,0.00544336,2752.8,2752.3,3.2078]
[1738772041001,3.2078,2752.7,2752.2,0.04964375]
[1738772041504,3.2078,2752.7,2751.8,3.2078]
[1738772041505,3.2078,2752.7,2752.4,0.04964375]
[1738772041707,0.00544336,2752.8,2752.4,3.25744375]
[1738772042006,0.00544336,2752.8,2752.4,0.04964375]
[1738772042410,0.00544336,2752.8,2752.6,0.04964375]
[1738772042808,3.2078,2752.7,2752.6,0.04964375]
[1738772043406,3.2078,2752.7,2751.9,3.2078]
[1738772044112,1.788,2752.6,2751.9,3.2078]
[1738772044302,3.2078,2752.7,2752.3,0.04964375]
[1738772044805,0.00544336,2752.8,2752.3,0.04964375]
[1738772045003,0.00544336,2752.8,2752.5,3.2078]
[1738772045307,0.00544336,2752.8,2752.6,0.04964375]
[1738772046301,0.00544336,2752.8,2752.7,0.04964375]
[1738772047705,3.2078,2753.7,2752.7,3.25744375]
[1738772047900,3.2078,2753.7,2753.0,3.2078]
[1738772048101,3.2078,2753.7,2752.7,0.04964375]
[1738772048102,3.93386,2753.7,2752.7,0.04964375]
[1738772048308,3.2078,2753.4,2753.2,0.04964375]
[1738772048610,3.93394,2753.4,2753.2,0.04964375]
[1738772048801,3.2078,2753.4,2753.2,0.04964375]
[1738772048999,8.93394,2753.4,2753.2,0.04964375]
[1738772049204,2.51614,2753.3,2753.2,0.04964375]
[1738772049716,1.79,2753.3,2753.2,0.04964375]
[1738772050012,1.79,2753.3,2753.2,0.0992875]
[1738772050207,1.79,2753.3,2752.5,3.2078]
[1738772050414,1.79,2753.3,2751.7,0.9283]
[1738772050415,3.2078,2753.0,2752.1,3.2078]
[1738772051607,3.93404,2753.0,2752.1,3.2078]
[1738772051807,3.2078,2752.7,2752.1,3.2078]
[1738772052610,3.93403,2753.0,2752.1,3.2078]
[1738772052915,3.2078,2753.0,2752.1,3.2078]
[1738772053116,0.72635,2752.6,2752.1,3.2078]
[1738772053320,3.2078,2752.7,2752.1,3.2078]
[1738772054412,4.9908,2752.7,2751.8,3.2078]
[1738772054807,5.7171,2752.7,2751.8,3.2078]
[1738772055006,0.00544336,2752.5,2751.8,3.2078]
[1738772055511,0.73180336,2752.5,2751.8,3.2078]
[1738772055814,0.73180336,2752.5,2752.1,0.04964375]
[1738772056015,0.00544336,2752.5,2752.1,0.04964375]
[1738772056618,0.00544336,2752.5,2752.3,0.04964375]
[1738772056813,3.2078,2752.4,2752.3,0.04964375]
[1738772057015,3.2078,2752.4,2751.2,3.2078]
[1738772057207,3.2078,2751.7,2750.9,1.9088]
[1738772057410,8.3607034,2751.7,2750.2,3.2078]
[1738772057610,3.2078,2751.4,2750.8,3.2078]
[1738772058008,0.00544336,2751.2,2750.8,3.2078]
[1738772058214,0.00544336,2751.2,2750.9,0.9364]
[1738772058415,0.00544336,2751.2,2751.1,3.2078]
[1738772059626,4.9828,2752.1,2751.1,3.2078]
[1738772059812,5.2727392,2752.1,2751.5,3.2078]
[1738772060626,1.766,2752.6,2751.5,3.2078]
[1738772060920,1.766,2752.6,2751.5,3.21324336]
[1738772060921,0.00544336,2752.1,2751.5,3.21324336]
[1738772062511,0.00544336,2752.1,2752.0,3.2078]
[1738772062713,3.2078,2753.1,2752.0,3.2078]
[1738772062919,3.2078,2753.1,2752.4,3.2078]
[1738772064028,0.00544336,2753.0,2752.4,3.2078]
[1738772064224,0.00544336,2753.0,2752.7,3.2078]
[1738772064926,3.21324336,2753.0,2752.1,4.1226]
[1738772065231,3.2078,2752.7,2752.1,4.1226]
[1738772066329,0.00544336,2753.0,2752.1,4.1226]
[1738772066524,3.2078,2752.9,2752.1,4.1226]
[1738772067031,3.2078,2752.9,2752.1,0.9148]
[1738772067234,3.2078,2752.5,2752.1,0.9148]
[1738772067422,0.72629,2752.8,2752.1,0.9148]
[1738772067629,3.2078,2752.9,2752.1,0.9148]
[1738772067630,0.72631,2752.7,2752.1,0.9148]
[1738772067929,3.2078,2752.9,2752.1,0.9148]
[1738772068330,0.72629,2752.8,2752.1,4.1226]
[1738772068525,3.93406,2752.9,2752.1,4.1226]
[1738772068721,0.72629,2752.8,2752.1,4.1226]
[1738772069125,3.2078,2752.9,2752.1,0.9148]
[1738772069333,0.72637,2752.5,2752.1,0.9148]
[1738772069629,3.2078,2752.9,2751.7,0.8842]
[1738772069630,3.2078,2752.3,2751.7,0.8842]
[1738772069835,3.2078,2752.3,2751.6,0.8941]
[1738772069836,0.72659,2751.6,2751.5,0.00544336]
[1738772070635,0.72675,2751.0,2750.4,3.2078]
[1738772070938,3.93455,2751.0,2750.4,3.2078]
[1738772071235,3.2078,2750.7,2749.2,3.2078]
[1738772071436,1.753,2751.2,2748.9,3.2078]
[1738772071437,3.3779034,2750.0,2748.9,3.2078]
[1738772071628,3.2078,2750.1,2748.9,3.2078]
[1738772071629,3.2078,2750.1,2749.7,0.00545365]
[1738772071839,0.00545365,2750.2,2749.7,0.00545365]
[1738772072231,3.21325365,2750.2,2749.7,0.00545365]
[1738772072440,3.2078,2749.9,2748.8,3.2078]
[1738772072637,1.764,2750.1,2749.1,3.2078]
[1738772073140,0.00545365,2750.2,2749.4,3.2078]
[1738772073335,0.00545365,2750.2,2748.7,1.8384]
[1738772073336,0.00545365,2750.2,2749.3,3.2078]
[1738772075538,3.21325365,2750.2,2749.4,3.2078]
[1738772076335,3.21325365,2750.2,2749.8,0.04735877]
[1738772076741,0.00545365,2750.2,2750.0,0.04964375]
[1738772077036,3.2078,2751.4,2750.1,4.68972501]
[1738772077242,3.3779034,2751.6,2750.4,3.2078]
[1738772077646,3.3779034,2751.6,2750.5,4.68972501]
[1738772077831,3.3779034,2751.6,2751.0,0.04964375]
[1738772078137,0.00545365,2751.6,2751.0,0.0550974]
[1738772078840,0.00545365,2751.6,2751.3,0.04964375]
[1738772079639,3.2078,2751.4,2751.0,0.00545365]
[1738772080540,3.38335705,2751.6,2751.0,0.00545365]
[1738772080541,0.00545365,2751.6,2751.1,3.2078]
[1738772080743,0.00545365,2751.6,2751.4,3.2078]
[1738772081046,0.00545365,2751.6,2751.1,8.2078]
[1738772081346,3.2078,2752.6,2751.5,4.76512195]
[1738772081646,3.2078,2752.6,2751.7,3.2078]
[1738772081847,3.2078,2752.6,2751.3,3.2078]
[1738772082045,7.3122034,2752.0,2751.3,4.76512195]
[1738772082242,6.5857034,2751.6,2751.0,0.00545365]
[1738772082442,7.3123034,2751.6,2751.0,0.00545365]
[1738772082640,7.3123034,2751.6,2751.3,0.05959891]
[1738772082641,3.2078,2751.6,2751.3,0.05959891]
[1738772082842,0.00545365,2751.9,2751.3,0.05959891]
[1738772083540,0.00545365,2751.9,2751.3,3.26739891]
[1738772083739,0.00545365,2751.9,2751.6,3.26739891]
[1738772083940,0.00545365,2751.9,2751.6,0.05959891]
[1738772084738,0.00545365,2751.9,2751.7,0.05959891]
[1738772085541,0.00545365,2751.9,2751.3,3.2078]
[1738772085740,3.2078,2751.7,2751.0,3.21325365]
[1738772086145,3.3779034,2751.6,2751.0,3.21325365]
[1738772086449,3.3779034,2751.6,2751.0,0.00545365]
[1738772086450,3.2078,2751.2,2751.0,0.00545365]
[1738772087747,3.2078,2751.7,2751.0,0.00545365]
[1738772088339,3.2078,2751.7,2751.3,0.04964375]
[1738772088745,0.00545365,2751.9,2751.3,3.25744375]
[1738772088950,0.00545365,2751.9,2751.3,0.04964375]
[1738772089451,0.00545365,2751.9,2751.6,0.04964375]
[1738772090448,0.00545365,2751.9,2751.7,0.04964375]
[1738772091454,0.00545365,2751.9,2751.8,0.04964375]
[1738772091754,13.67465837,2752.6,2751.8,4.66579497]
[1738772091949,12.19995837,2752.6,2752.3,3.2078]
[1738772092255,7.77071501,2752.6,2752.4,1.8905]
[1738772092443,1.77291501,2752.6,2752.5,0.04964375]
[1738772092753,3.1534,2753.0,2752.5,4.67420824]
[1738772092954,2.9142,2753.0,2752.9,7.3119534]
[1738772093255,2.9142,2753.0,2752.9,12.3119534]
[1738772093456,2.9142,2753.0,2752.9,16.28235728]
[1738772093658,0.893,2754.8,2752.9,57.08235728]
[1738772093952,6.5857034,2755.2,2754.0,3.2078]
[1738772093953,14.99841858,2754.3,2754.0,3.2078]
[1738772094150,14.99841858,2754.3,2754.1,0.0992875]
[1738772095057,9.66096615,2754.2,2753.6,0.00545365]
[1738772095246,21.45158473,2754.3,2753.8,3.2078]
[1738772095448,6.45316615,2753.7,2753.1,3.2078]
[1738772095654,3.2078,2753.9,2753.1,3.2078]
[1738772095853,6.45316615,2753.5,2753.1,3.2078]
[1738772096246,3.2078,2753.9,2753.1,3.2078]
[1738772096452,3.2078,2754.0,2753.4,3.2078]
[1738772096859,3.38335705,2754.4,2753.4,3.2078]
[1738772096860,6.45316615,2753.6,2753.4,3.2078]
[1738772097455,5.19165705,2754.4,2753.2,0.00545365]
[1738772097456,6.45316615,2753.5,2753.2,0.00545365]
[1738772097655,6.45316615,2753.3,2753.2,0.00545365]
[1738772098348,0.00545365,2754.4,2753.2,9.77128336]
[1738772098551,6.45316615,2754.0,2753.7,3.2078]
[1738772098752,6.45316615,2754.2,2753.7,3.2078]
[1738772098958,0.00545365,2754.4,2754.0,3.2078]
[1738772099155,6.45316615,2753.5,2753.2,0.00545365]
[1738772099354,6.45316615,2753.7,2753.3,3.2078]
[1738772099555,1.834,2754.3,2753.6,3.2078]
[1738772099754,6.4035224,2753.3,2753.2,3.21325365]
[1738772099952,6.4035224,2753.6,2753.2,3.21325365]
[1738772100148,6.4035224,2753.3,2753.2,3.21325365]
[1738772100552,6.4035224,2753.3,2753.2,0.00545365]
[1738772100858,3.2078,2753.8,2753.2,0.00545365]
[1738772101047,6.4035224,2753.6,2753.2,0.00545365]
[1738772101553,6.4035224,2753.6,2753.3,3.2078]
[1738772101754,6.4035224,2753.3,2753.2,0.00545365]
[1738772101956,6.4035224,2753.6,2753.2,0.00545365]
[1738772102261,0.89505365,2754.4,2753.2,0.00545365]
[1738772102262,0.00545365,2754.4,2753.3,7.9407373]
[1738772102461,6.40897605,2754.4,2754.1,3.2078]
[1738772102661,0.00545365,2754.4,2754.1,3.2078]
[1738772102959,6.4035224,2754.2,2754.1,3.2078]
[1738772103160,6.4035224,2754.2,2753.8,3.2078]
[1738772103357,6.4035224,2753.9,2753.5,3.2078]
[1738772103555,1.9066,2754.3,2753.8,3.2078]
[1738772103856,6.4035224,2753.9,2753.2,0.00545365]
[1738772104057,6.4035224,2753.3,2753.2,0.00545365]
[1738772104260,6.4035224,2753.5,2753.2,0.00545365]
[1738772104458,6.4035224,2753.3,2753.2,0.00545365]
[1738772104658,9.6113224,2753.3,2752.9,3.2078]
[1738772104857,6.4035224,2753.2,2752.9,3.2078]
[1738772105056,3.3779034,2754.1,2752.9,3.2078]
[1738772105057,6.4035224,2753.0,2752.9,3.2078]
[1738772105361,6.4035224,2753.2,2752.9,3.2078]
[1738772105562,0.726,2753.9,2753.0,0.04826795]
[1738772105759,3.2078,2754.0,2753.2,3.2078]
[1738772106064,6.4035224,2753.5,2753.2,3.2078]
[1738772106257,3.2078,2754.0,2753.2,3.2078]
[1738772106565,6.4035224,2754.0,2753.6,0.04826795]
[1738772106756,6.4035224,2754.0,2753.7,3.2078]
[1738772106957,1.9066,2754.3,2753.7,3.2078]
[1738772107152,6.4035224,2754.1,2753.7,3.2078]
[1738772107558,6.4035224,2754.1,2753.9,0.04826795]
[1738772107756,1.9066,2754.3,2753.9,0.04826795]
[1738772108059,3.2078,2755.1,2754.2,3.2078]
[1738772108364,6.4035224,2754.3,2754.2,3.2078]
[1738772108560,6.4035224,2754.3,2753.9,0.04826795]
[1738772108757,0.72579,2754.7,2754.1,0.04964375]
[1738772108952,6.4035224,2754.2,2754.1,0.04964375]
[1738772110160,3.2078,2755.1,2754.1,0.04964375]
[1738772110467,7.1294424,2754.2,2753.5,3.2078]
[1738772110666,3.2078,2753.6,2752.7,3.2078]
[1738772110970,9.6113224,2752.9,2751.9,3.2078]
[1738772111270,6.4035224,2752.0,2751.9,3.2078]
[1738772112066,6.4035224,2752.0,2751.7,0.00545365]
[1738772112363,0.00545365,2752.2,2751.7,0.00545365]
[1738772112572,6.4035224,2751.8,2751.7,0.00545365]
[1738772112765,6.4035224,2751.8,2751.5,3.2078]
[1738772113060,6.4035224,2751.6,2751.5,3.2078]
[1738772113266,6.4035224,2751.6,2750.5,3.2078]
[1738772113565,0.9047,2751.7,2750.9,3.2078]
[1738772113566,6.4035224,2751.4,2750.9,3.2078]
[1738772113766,6.4035224,2751.4,2750.6,7.95259069]
[1738772113957,6.4035224,2751.1,2750.4,3.2078]
[1738772114157,6.4035224,2750.8,2750.4,3.2078]
[1738772114364,3.2078,2751.5,2750.7,3.2078]
[1738772114668,6.36661894,2750.9,2750.7,3.2078]
[1738772115059,6.36661894,2750.9,2750.4,3.2078]
[1738772115267,6.36661894,2750.9,2750.7,3.2078]
[1738772115560,0.00545365,2751.4,2750.8,0.01274029]
[1738772115965,0.00425365,2751.4,2751.3,0.72667]
[1738772116159,0.9349,2753.3,2752.1,0.72645]
[1738772116467,0.9349,2753.3,2752.8,3.2078]
[1738772116666,0.9349,2753.3,2752.7,0.01274029]
[1738772116860,6.36661894,2752.8,2752.7,0.01274029]
[1738772117061,6.36661894,2753.1,2752.7,3.22054029]
[1738772117369,0.9408,2753.6,2753.0,3.2078]
[1738772117670,6.3593323,2753.2,2753.1,3.2078]
[1738772118064,0.00545365,2753.2,2753.1,8.2078]
[1738772118369,4.1626,2754.3,2753.2,0.72617]
[1738772118563,6.35387865,2754.0,2753.2,3.3779034]
[1738772118759,6.35387865,2754.0,2753.5,3.2078]
[1738772119166,6.35387865,2754.0,2753.6,4.81416651]
[1738772119365,6.35387865,2754.0,2753.8,3.2078]
[1738772119568,6.3593323,2754.0,2753.8,3.2078]
[1738772119760,6.3593323,2754.0,2753.3,3.2078]
[1738772119957,6.3593323,2754.0,2753.8,3.2078]
[1738772120166,3.2078,2753.9,2753.1,3.2078]
[1738772120470,0.00545365,2754.0,2753.2,3.2078]
[1738772120665,6.35387865,2753.4,2753.1,3.2078]
[1738772120862,6.35387865,2753.5,2753.1,3.2078]
[1738772121061,6.35387865,2753.5,2753.3,0.04964375]
[1738772121269,0.00545365,2754.0,2753.4,3.2078]
[1738772121469,6.3593323,2754.0,2753.4,7.97050443]
[1738772122065,6.3593323,2754.0,2753.7,0.04964375]
[1738772122272,0.00545365,2754.0,2753.7,0.04964375]
[1738772122865,6.35387865,2753.8,2753.7,0.04964375]
[1738772123272,0.00545365,2754.0,2753.7,16.38176049]
[1738772123566,3.2078,2755.1,2753.7,18.07349049]
[1738772123771,6.35387865,2754.8,2754.6,3.2078]
[1738772123970,3.2078,2755.1,2754.2,3.2078]
[1738772124474,3.2078,2755.1,2753.9,4.77929879]
[1738772124475,6.3042349,2754.8,2754.5,3.2078]
[1738772125069,0.00545365,2754.9,2754.6,4.77929879]
[1738772125271,0.00545365,2754.9,2754.8,3.2078]
[1738772125773,0.9819,2756.0,2754.8,12.92463966]
[1738772125966,3.2078,2756.2,2755.6,3.2078]
[1738772126167,0.9226,2756.4,2755.9,3.2078]
[1738772126465,0.9226,2756.4,2754.9,0.72571]
[1738772126466,6.3042349,2756.3,2756.2,3.2078]
[1738772126869,0.9411,2756.9,2756.2,3.2078]
[1738772127073,0.00544366,2756.5,2756.0,0.00544366]
[1738772127371,0.00544366,2756.5,2756.4,3.2078]
[1738772127773,0.00544366,2756.5,2756.1,3.2078]
[1738772127969,6.30967856,2756.5,2756.1,3.2078]
[1738772128176,0.00544366,2756.5,2756.1,3.2078]
[1738772128374,0.00544366,2756.5,2756.4,3.2078]
[1738772128767,0.00544366,2756.5,2756.4,8.2078]
[1738772128969,0.00544366,2756.5,2756.4,13.39573135]
[1738772129171,0.00544366,2756.5,2756.4,14.12106135]
[1738772129373,0.9819,2757.5,2756.4,14.12106135]
[1738772129578,6.3042349,2757.3,2757.0,3.2078]
[1738772129768,6.3042349,2757.5,2757.0,6.5857034]
[1738772129969,6.3042349,2757.6,2757.3,3.2078]
[1738772130180,6.3042349,2757.7,2757.3,3.2078]
[1738772130370,6.3042349,2757.7,2757.6,3.2078]
[1738772130672,6.30967856,2757.7,2757.6,3.2078]
[1738772130875,0.00544366,2757.7,2757.6,3.2078]
[1738772131680,6.30967856,2757.7,2757.2,0.00544366]
[1738772131975,6.30967856,2757.7,2757.6,3.2078]
[1738772132278,0.00544366,2757.7,2757.5,3.2078]
[1738772132479,0.00544366,2757.7,2757.6,4.75535983]
[1738772132673,0.00544366,2757.7,2757.5,8.2078]
[1738772132869,0.9685,2759.0,2757.5,8.2078]
[1738772133068,6.3042349,2758.9,2758.5,3.2078]
[1738772133274,6.3042349,2758.9,2758.8,3.2078]
[1738772133473,0.928,2759.3,2758.8,3.2078]
[1738772133780,6.3042349,2758.9,2758.6,3.2078]
[1738772133973,6.3042349,2758.7,2758.6,3.2078]
[1738772134174,6.3042349,2758.7,2758.0,3.2078]
[1738772134475,6.3042349,2758.6,2758.4,3.21324366]
[1738772134673,6.3042349,2758.8,2758.4,3.21324366]
[1738772134873,6.3042349,2759.0,2758.7,3.2078]
[1738772135380,0.00356492,2759.3,2758.8,4.64252242]
[1738772135581,0.00356492,2759.3,2759.2,3.2078]
[1738772135879,6.3042349,2759.2,2758.9,3.2078]
[1738772136180,6.3042349,2758.7,2758.4,3.21324366]
[1738772136571,6.3042349,2758.5,2758.4,3.21324366]
[1738772136881,6.3042349,2758.7,2758.4,3.21324366]
[1738772137578,6.3042349,2758.5,2758.4,0.00544366]
[1738772137775,6.3042349,2758.5,2757.8,3.2078]
[1738772137980,0.918,2758.6,2757.8,3.2078]
[1738772137981,3.2078,2758.2,2757.8,3.2078]
[1738772138178,6.3042349,2758.1,2757.8,3.2078]
[1738772138378,3.2078,2759.1,2758.0,3.3779034]
[1738772138585,6.3042349,2758.8,2758.6,3.2078]
[1738772139283,3.2078,2759.1,2758.4,0.00544366]
[1738772139284,6.3042349,2758.7,2758.4,0.00544366]
[1738772139484,3.2078,2759.1,2758.4,0.00544366]
[1738772139686,6.3042349,2758.5,2758.4,0.00544366]
[1738772140880,6.3042349,2758.5,2757.9,3.2078]
[1738772141078,6.3042349,2758.1,2757.9,3.2078]
[1738772141280,6.3042349,2758.0,2757.9,3.2078]
[1738772142282,4.167,2758.8,2757.9,3.2078]
[1738772142583,0.72484,2758.3,2757.9,3.2078]
[1738772142880,6.3042349,2758.0,2757.0,3.2078]
[1738772143083,6.3042349,2757.0,2756.7,3.2078]
[1738772143282,6.3042349,2757.3,2756.7,3.2078]
[1738772143482,6.3042349,2757.0,2756.8,3.2078]
[1738772144087,6.3042349,2756.9,2756.8,3.2078]
[1738772144290,6.3042349,2756.9,2756.6,3.21324366]
[1738772144582,6.3042349,2756.7,2756.2,3.2078]
[1738772144880,3.2078,2756.8,2756.2,3.2078]
[1738772145081,6.3042349,2756.3,2756.2,3.2078]
[1738772145280,6.3042349,2756.6,2756.2,3.2078]
[1738772145481,6.3042349,2756.6,2756.5,3.2078]
[1738772145677,1.8598,2757.1,2756.5,3.2078]
[1738772145885,1.8598,2757.1,2756.8,3.2078]
[1738772145886,8.1640349,2757.1,2756.8,3.2078]
[1738772146086,8.1640349,2757.1,2756.5,3.2078]
[1738772146288,5.79275,2757.1,2756.5,3.2078]
[1738772146593,6.3042349,2756.6,2756.5,3.2078]
[1738772147282,6.3042349,2756.6,2756.3,0.00544366]
[1738772147484,3.2078,2757.0,2756.3,0.00544366]
[1738772147485,6.3042349,2756.4,2756.3,0.00544366]
[1738772148090,6.3042349,2756.4,2756.2,3.2078]
[1738772148292,6.3042349,2756.3,2756.2,3.2078]
[1738772148783,6.3042349,2756.3,2755.4,3.2078]
[1738772149095,6.3042349,2755.6,2755.0,7.9295503]
[1738772149294,6.3042349,2755.3,2755.0,7.9295503]
[1738772149501,3.2078,2756.1,2755.6,0.00544366]
[1738772149502,0.72553,2755.7,2755.6,0.00544366]
[1738772149794,0.72553,2755.7,2754.6,3.2078]
[1738772149795,0.72563,2755.3,2754.6,3.2078]
[1738772149985,6.3042349,2754.7,2754.4,4.67220339]
[1738772150186,6.3042349,2754.5,2754.1,3.2078]
[1738772150388,6.3042349,2754.2,2754.1,3.2078]
[1738772150787,9.5120349,2754.2,2753.7,3.2078]
[1738772150995,6.3042349,2753.8,2753.7,3.2078]
[1738772152090,3.2078,2754.6,2753.7,3.2078]
[1738772152288,0.9662,2754.9,2754.1,3.2078]
[1738772152489,6.3042349,2754.4,2754.1,3.2078]
[1738772152889,6.3042349,2754.2,2753.5,3.2078]
[1738772153089,6.3042349,2753.8,2753.5,3.2078]
[1738772153283,6.3042349,2753.8,2753.5,7.98972181]
[1738772153587,3.2078,2754.7,2753.5,3.2078]
[1738772153793,3.2078,2754.7,2753.9,3.2078]
[1738772153794,6.3042349,2754.1,2753.9,3.2078]
[1738772153994,3.21324366,2754.4,2753.6,3.2078]
[1738772154183,6.3042349,2753.7,2753.6,3.2078]
[1738772154591,3.21324366,2754.4,2753.6,3.2078]
[1738772154789,6.3042349,2754.0,2753.6,3.2078]
[1738772155092,6.3042349,2754.3,2753.9,3.2078]
[1738772155289,0.00544366,2754.4,2754.2,3.2078]